[Event "*** Titled Tuesday Blitz"]
[Site "Chess.com"]
[Date "2019.02.05"]
[Round "2"]
[White "tigra"]
[Black "Koksik_13"]
[Result "1-0"]
[WhiteElo "2768"]
[BlackElo "2664"]
[TimeControl "180+2"]
[EndTime "13:21:50 PST"]
[Termination "tigra won by resignation"]

1. e4 {[%clk 0:03:01.9]} 1... c6 {[%clk 0:03:00.9]} 2. d4 {[%clk 0:02:56]} 2...
g6 {[%clk 0:02:58.1]} 3. c4 {[%clk 0:02:55.4]} 3... Bg7 {[%clk 0:02:58.6]} 4.
Nc3 {[%clk 0:02:54.7]} 4... d5 {[%clk 0:02:58.4]} 5. cxd5 {[%clk 0:02:53.2]}
5... cxd5 {[%clk 0:02:59.6]} 6. Nxd5 {[%clk 0:02:47.3]} 6... Nc6 {[%clk
0:02:56]} 7. Bb5 {[%clk 0:02:46.1]} 7... Nf6 {[%clk 0:02:51.7]} 8. Nxf6+ {[%clk
0:02:43.5]} 8... Bxf6 {[%clk 0:02:52.7]} 9. Ne2 {[%clk 0:02:43.9]} 9... O-O
{[%clk 0:02:48.9]} 10. Be3 {[%clk 0:02:43.7]} 10... Qa5+ {[%clk 0:02:45.1]} 11.
Nc3 {[%clk 0:02:44.1]} 11... Rd8 {[%clk 0:02:46.6]} 12. Bxc6 {[%clk 0:02:35.6]}
12... bxc6 {[%clk 0:02:47.1]} 13. Qa4 {[%clk 0:02:37.2]} 13... Qxa4 {[%clk
0:02:41.7]} 14. Nxa4 {[%clk 0:02:39.1]} 14... Bxd4 {[%clk 0:02:39.5]} 15. O-O-O
{[%clk 0:02:38.8]} 15... Bxe3+ {[%clk 0:02:39.4]} 16. fxe3 {[%clk 0:02:40.7]}
16... Bg4 {[%clk 0:02:40.6]} 17. Rd2 {[%clk 0:02:39.4]} 17... Rxd2 {[%clk
0:02:39.4]} 18. Kxd2 {[%clk 0:02:39.8]} 18... Rd8+ {[%clk 0:02:39.9]} 19. Kc3
{[%clk 0:02:40.3]} 19... h5 {[%clk 0:02:36.9]} 20. Rf1 {[%clk 0:02:31.1]} 20...
Be2 {[%clk 0:02:09.7]} 21. Rf2 {[%clk 0:02:30.3]} 21... Bb5 {[%clk 0:01:45.3]}
22. Nc5 {[%clk 0:02:30.2]} 22... Rd1 {[%clk 0:01:46.2]} 23. a4 {[%clk
0:02:27.2]} 23... Bf1 {[%clk 0:01:35.6]} 24. e5 {[%clk 0:02:13.8]} 24... h4
{[%clk 0:01:28.3]} 25. Kb4 {[%clk 0:02:09.4]} 25... h3 {[%clk 0:01:22.1]} 26.
gxh3 {[%clk 0:02:08.7]} 26... Bxh3 {[%clk 0:01:24]} 27. Ka5 {[%clk 0:02:07.1]}
27... Rd5 {[%clk 0:01:24]} 28. b4 {[%clk 0:02:07.5]} 28... Rxe5 {[%clk
0:01:22.3]} 29. Ka6 {[%clk 0:02:07.6]} 29... Rxe3 {[%clk 0:01:22.6]} 30. Kxa7
{[%clk 0:02:08.8]} 30... Re1 {[%clk 0:01:10.9]} 31. Rb2 {[%clk 0:01:58.5]} 31...
e5 {[%clk 0:01:10.3]} 32. Kb6 {[%clk 0:01:58.2]} 32... e4 {[%clk 0:01:08.8]} 33.
a5 {[%clk 0:01:57]} 33... f5 {[%clk 0:00:44]} 34. a6 {[%clk 0:01:56.6]} 34...
Ra1 {[%clk 0:00:43.8]} 35. a7 {[%clk 0:01:55.1]} 35... Bf1 {[%clk 0:00:38.5]}
36. Rb1 {[%clk 0:01:50.8]} 36... Rxa7 {[%clk 0:00:31.3]} 37. Kxa7 {[%clk
0:01:50.9]} 37... Bb5 {[%clk 0:00:32.3]} 38. Re1 {[%clk 0:01:46.6]} 38... Kf7
{[%clk 0:00:32.5]} 39. Nxe4 {[%clk 0:01:43.6]} 39... fxe4 {[%clk 0:00:32.6]} 40.
Rxe4 {[%clk 0:01:45]} 40... Kf6 {[%clk 0:00:33.5]} 41. Kb6 {[%clk 0:01:45.5]}
41... Kf5 {[%clk 0:00:34.3]} 42. Re7 {[%clk 0:01:45.3]} 42... Kg4 {[%clk
0:00:33.5]} 43. Re6 {[%clk 0:01:35.6]} 43... g5 {[%clk 0:00:34.3]} 44. Rxc6
{[%clk 0:01:31.3]} 44... Bxc6 {[%clk 0:00:34.6]} 45. Kxc6 {[%clk 0:01:33.2]}
45... Kh3 {[%clk 0:00:36.1]} 46. b5 {[%clk 0:01:34.4]} 46... g4 {[%clk
0:00:37.7]} 47. b6 {[%clk 0:01:35.4]} 1-0

[Event "*** Titled Tuesday Blitz"]
[Site "Chess.com"]
[Date "2019.02.05"]
[Round "2"]
[White "Tiqr777"]
[Black "Parhamov"]
[Result "0-1"]
[WhiteElo "2601"]
[BlackElo "2966"]
[TimeControl "180+2"]
[EndTime "13:21:56 PST"]
[Termination "Parhamov won by resignation"]

1. c4 {[%clk 0:03:01.9]} 1... e5 {[%clk 0:03:00.5]} 2. Nc3 {[%clk 0:03:02.9]}
2... d6 {[%clk 0:02:59.8]} 3. g3 {[%clk 0:03:03.7]} 3... f5 {[%clk 0:03:00.8]}
4. d3 {[%clk 0:03:03.9]} 4... Nf6 {[%clk 0:03:00.1]} 5. Bg2 {[%clk 0:03:05.2]}
5... g6 {[%clk 0:03:00.8]} 6. Nf3 {[%clk 0:03:06.3]} 6... Bg7 {[%clk 0:03:02]}
7. O-O {[%clk 0:03:07.5]} 7... O-O {[%clk 0:03:02.9]} 8. Rb1 {[%clk 0:03:08.8]}
8... h6 {[%clk 0:03:01.7]} 9. b4 {[%clk 0:03:09]} 9... g5 {[%clk 0:03:02.1]} 10.
Qb3 {[%clk 0:03:09]} 10... Be6 {[%clk 0:03:00.7]} 11. Ne1 {[%clk 0:03:05.4]}
11... Qc8 {[%clk 0:02:47.5]} 12. Nd5 {[%clk 0:02:59.9]} 12... Rf7 {[%clk
0:02:47.1]} 13. Nc2 {[%clk 0:02:59.3]} 13... Nbd7 {[%clk 0:02:45.3]} 14. Bb2
{[%clk 0:02:44.9]} 14... c6 {[%clk 0:02:43.9]} 15. Nxf6+ {[%clk 0:02:45.2]}
15... Nxf6 {[%clk 0:02:45.1]} 16. b5 {[%clk 0:02:43.8]} 16... c5 {[%clk
0:02:42.6]} 17. a4 {[%clk 0:02:39.6]} 17... f4 {[%clk 0:02:42.6]} 18. a5 {[%clk
0:02:39.3]} 18... Bh3 {[%clk 0:02:42.1]} 19. a6 {[%clk 0:02:16.3]} 19... Bxg2
{[%clk 0:02:37.5]} 20. Kxg2 {[%clk 0:02:14.7]} 20... b6 {[%clk 0:02:35.4]} 21.
f3 {[%clk 0:01:55.6]} 21... h5 {[%clk 0:02:32]} 22. e3 {[%clk 0:01:53]} 22...
Qf5 {[%clk 0:02:22.9]} 23. e4 {[%clk 0:01:39.5]} 23... Qe6 {[%clk 0:02:22.5]}
24. gxf4 {[%clk 0:01:40.4]} 24... exf4 {[%clk 0:02:15.6]} 25. d4 {[%clk
0:01:19.1]} 25... Nd7 {[%clk 0:02:11.4]} 26. e5 {[%clk 0:00:58.3]} 26... dxe5
{[%clk 0:01:58.6]} 27. d5 {[%clk 0:00:59.5]} 27... Qg6 {[%clk 0:01:59.4]} 28.
Rbe1 {[%clk 0:00:40.6]} 28... Re8 {[%clk 0:01:59.7]} 29. Re4 {[%clk 0:00:37]}
29... g4 {[%clk 0:01:55.5]} 30. Kf2 {[%clk 0:00:37.6]} 30... Qf5 {[%clk
0:01:46.8]} 31. Rfe1 {[%clk 0:00:33.7]} 31... Rfe7 {[%clk 0:01:45.5]} 32. Qd3
{[%clk 0:00:33.5]} 32... Nf6 {[%clk 0:01:44.7]} 33. Qe2 {[%clk 0:00:34.3]} 33...
Nxe4+ {[%clk 0:01:43.2]} 34. Qxe4 {[%clk 0:00:35.4]} 34... Qxe4 {[%clk
0:01:43.9]} 35. Rxe4 {[%clk 0:00:36.8]} 35... Kf7 {[%clk 0:01:44]} 36. Ne1
{[%clk 0:00:37.3]} 36... Kg6 {[%clk 0:01:45]} 37. Nd3 {[%clk 0:00:38.3]} 37...
Kf5 {[%clk 0:01:46.2]} 38. Ke2 {[%clk 0:00:21.3]} 38... Bf6 {[%clk 0:01:47.1]}
39. Nf2 {[%clk 0:00:22.3]} 39... Rg8 {[%clk 0:01:40.3]} 40. Kf1 {[%clk
0:00:20.1]} 40... gxf3 {[%clk 0:01:39.7]} 41. Bc3 {[%clk 0:00:15.4]} 41... Rg2
{[%clk 0:01:40.4]} 0-1

[Event "*** Titled Tuesday Blitz"]
[Site "Chess.com"]
[Date "2019.02.05"]
[Round "2"]
[White "NotFischer"]
[Black "AlexTruskavetsky"]
[Result "0-1"]
[WhiteElo "2114"]
[BlackElo "2238"]
[TimeControl "180+2"]
[EndTime "13:22:16 PST"]
[Termination "AlexTruskavetsky won by checkmate"]

1. d4 {[%clk 0:03:01.9]} 1... Nf6 {[%clk 0:03:00]} 2. Bf4 {[%clk 0:03:02.7]}
2... c6 {[%clk 0:02:59.1]} 3. c3 {[%clk 0:03:01.5]} 3... Qb6 {[%clk 0:02:55.2]}
4. Qb3 {[%clk 0:03:02]} 4... d5 {[%clk 0:02:52.6]} 5. Nd2 {[%clk 0:03:01.8]}
5... Bf5 {[%clk 0:02:50.1]} 6. Ngf3 {[%clk 0:02:59.9]} 6... e6 {[%clk
0:02:50.9]} 7. e3 {[%clk 0:02:56.5]} 7... Be7 {[%clk 0:02:50.3]} 8. Be2 {[%clk
0:02:54.4]} 8... O-O {[%clk 0:02:50.8]} 9. O-O {[%clk 0:02:53.8]} 9... Nbd7
{[%clk 0:02:42.7]} 10. Rfe1 {[%clk 0:02:52]} 10... h6 {[%clk 0:02:38.4]} 11. h3
{[%clk 0:02:50.3]} 11... Rfc8 {[%clk 0:02:38.7]} 12. Ne5 {[%clk 0:02:43.6]}
12... Nxe5 {[%clk 0:02:36.8]} 13. Bxe5 {[%clk 0:02:43.8]} 13... Nd7 {[%clk
0:02:35.8]} 14. Bg3 {[%clk 0:02:38.6]} 14... c5 {[%clk 0:02:35.5]} 15. dxc5
{[%clk 0:02:33.9]} 15... Nxc5 {[%clk 0:02:15.5]} 16. Qxb6 {[%clk 0:02:33.3]}
16... axb6 {[%clk 0:02:17.4]} 17. Nf3 {[%clk 0:02:14.6]} 17... Na4 {[%clk
0:02:11.3]} 18. Nd4 {[%clk 0:02:01.5]} 18... Bg6 {[%clk 0:02:00.4]} 19. Bg4
{[%clk 0:01:36]} 19... Nxb2 {[%clk 0:01:53.9]} 20. Nxe6 {[%clk 0:01:35.5]} 20...
fxe6 {[%clk 0:01:53.4]} 21. Bxe6+ {[%clk 0:01:36.1]} 21... Kf8 {[%clk
0:01:53.9]} 22. Bxc8 {[%clk 0:01:35.3]} 22... Rxc8 {[%clk 0:01:54.2]} 23. Re2
{[%clk 0:01:26]} 23... Na4 {[%clk 0:01:49.4]} 24. Rd2 {[%clk 0:01:09.6]} 24...
Nxc3 {[%clk 0:01:48.1]} 25. Kh2 {[%clk 0:00:55.8]} 25... Ne4 {[%clk 0:01:40.4]}
26. Rxd5 {[%clk 0:00:53.8]} 26... Nxg3 {[%clk 0:01:41]} 27. Kxg3 {[%clk
0:00:51.4]} 27... Rc2 {[%clk 0:01:36.9]} 28. a4 {[%clk 0:00:43.5]} 28... Be4
{[%clk 0:01:33]} 29. Rb5 {[%clk 0:00:30.2]} 29... Bd6+ {[%clk 0:01:29.5]} 30.
Kh4 {[%clk 0:00:20.8]} 30... Rxf2 {[%clk 0:01:21.1]} 31. Rd1 {[%clk 0:00:12.4]}
31... Ke7 {[%clk 0:01:17.3]} 32. Rxb6 {[%clk 0:00:12]} 32... Bc6 {[%clk
0:01:13]} 33. a5 {[%clk 0:00:11.5]} 33... Rxg2 {[%clk 0:01:09.9]} 34. a6 {[%clk
0:00:10.7]} 34... Bf3 {[%clk 0:00:33.8]} 35. Rdxd6 {[%clk 0:00:10.3]} 35... g5#
{[%clk 0:00:33.9]} 0-1

[Event "*** Titled Tuesday Blitz"]
[Site "Chess.com"]
[Date "2019.02.05"]
[Round "2"]
[White "chesstatour"]
[Black "flomarechot"]
[Result "0-1"]
[WhiteElo "2016"]
[BlackElo "2061"]
[TimeControl "180+2"]
[EndTime "13:22:29 PST"]
[Termination "flomarechot won on time"]

1. c4 {[%clk 0:03:01.9]} 1... Nf6 {[%clk 0:02:59.9]} 2. Nc3 {[%clk 0:03:02.3]}
2... g6 {[%clk 0:03:00.3]} 3. e4 {[%clk 0:03:00.6]} 3... d6 {[%clk 0:03:00.3]}
4. d4 {[%clk 0:03:01.4]} 4... Bg7 {[%clk 0:03:01.4]} 5. f4 {[%clk 0:03:02.3]}
5... O-O {[%clk 0:03:02.5]} 6. Nf3 {[%clk 0:03:03.5]} 6... c5 {[%clk 0:03:04]}
7. d5 {[%clk 0:03:04.6]} 7... e6 {[%clk 0:03:05.3]} 8. dxe6 {[%clk 0:03:06.5]}
8... fxe6 {[%clk 0:03:06.5]} 9. Bd3 {[%clk 0:03:07.3]} 9... Nc6 {[%clk
0:03:07.6]} 10. O-O {[%clk 0:03:08.5]} 10... Nd4 {[%clk 0:03:09.3]} 11. Ng5
{[%clk 0:03:06.9]} 11... a6 {[%clk 0:02:36.6]} 12. e5 {[%clk 0:03:01.4]} 12...
dxe5 {[%clk 0:02:17.8]} 13. fxe5 {[%clk 0:03:02.1]} 13... Nd7 {[%clk 0:02:19.5]}
14. Rxf8+ {[%clk 0:02:47.9]} 14... Nxf8 {[%clk 0:01:58.2]} 15. Bf4 {[%clk
0:02:04.1]} 15... Bxe5 {[%clk 0:01:09.2]} 16. Nxe6 {[%clk 0:01:43.1]} 16... Qf6
{[%clk 0:00:50.6]} 17. Bxe5 {[%clk 0:01:29.4]} 17... Qxe5 {[%clk 0:00:50.4]} 18.
Nxf8 {[%clk 0:01:19.5]} 18... Kxf8 {[%clk 0:00:52.1]} 19. Qf1+ {[%clk
0:01:07.3]} 19... Bf5 {[%clk 0:00:52.3]} 20. g4 {[%clk 0:00:51.7]} 20... Qe3+
{[%clk 0:00:51.3]} 21. Kg2 {[%clk 0:00:33.1]} 21... Qxd3 {[%clk 0:00:49.8]} 22.
gxf5 {[%clk 0:00:23.2]} 22... Qxf5 {[%clk 0:00:50.2]} 23. Ne4 {[%clk 0:00:08.9]}
23... Kg7 {[%clk 0:00:47.5]} 24. Qxf5 {[%clk 0:00:08.1]} 24... Nxf5 {[%clk
0:00:49.1]} 25. Nxc5 {[%clk 0:00:09.2]} 25... Rc8 {[%clk 0:00:48.6]} 26. Nxb7
{[%clk 0:00:07.9]} 26... Rxc4 {[%clk 0:00:50.2]} 27. b3 {[%clk 0:00:05.5]} 27...
Rc2+ {[%clk 0:00:48.2]} 28. Kf3 {[%clk 0:00:04.9]} 28... Rxh2 {[%clk 0:00:49.4]}
29. Nc5 {[%clk 0:00:05.9]} 29... a5 {[%clk 0:00:43.5]} 30. Nb7 {[%clk
0:00:06.3]} 30... Nd4+ {[%clk 0:00:42.3]} 31. Kg3 {[%clk 0:00:04.8]} 31... Re2
{[%clk 0:00:26.1]} 32. Nxa5 {[%clk 0:00:04.2]} 32... h5 {[%clk 0:00:27.2]} 33.
Rd1 {[%clk 0:00:03.8]} 33... Nf5+ {[%clk 0:00:28.1]} 34. Kf4 {[%clk 0:00:02.8]}
34... Rxa2 {[%clk 0:00:28.5]} 0-1

[Event "*** Titled Tuesday Blitz"]
[Site "Chess.com"]
[Date "2019.02.05"]
[Round "2"]
[White "Revnov"]
[Black "Samuray111"]
[Result "1-0"]
[WhiteElo "2792"]
[BlackElo "2559"]
[TimeControl "180+2"]
[EndTime "13:22:31 PST"]
[Termination "Revnov won by resignation"]

1. e4 {[%clk 0:03:01.9]} 1... c5 {[%clk 0:02:58]} 2. Nf3 {[%clk 0:03:02.6]} 2...
g6 {[%clk 0:02:58.6]} 3. c3 {[%clk 0:03:03.4]} 3... Bg7 {[%clk 0:02:58.4]} 4. d4
{[%clk 0:03:04.6]} 4... cxd4 {[%clk 0:02:59.7]} 5. cxd4 {[%clk 0:03:06.5]} 5...
d5 {[%clk 0:03:01.2]} 6. e5 {[%clk 0:03:07.9]} 6... Bg4 {[%clk 0:03:02.4]} 7.
Bb5+ {[%clk 0:03:08.8]} 7... Nc6 {[%clk 0:03:00.5]} 8. Bxc6+ {[%clk 0:03:09.3]}
8... bxc6 {[%clk 0:03:01]} 9. Nbd2 {[%clk 0:03:10.9]} 9... Nh6 {[%clk
0:02:58.7]} 10. Qa4 {[%clk 0:03:09.1]} 10... O-O {[%clk 0:02:54.6]} 11. O-O
{[%clk 0:03:08.9]} 11... Qb6 {[%clk 0:02:52.6]} 12. b3 {[%clk 0:02:52.7]} 12...
c5 {[%clk 0:02:32.7]} 13. dxc5 {[%clk 0:02:26.8]} 13... Qxc5 {[%clk 0:02:33.3]}
14. Ba3 {[%clk 0:02:28.4]} 14... Qc7 {[%clk 0:02:32.5]} 15. Rac1 {[%clk
0:02:27.5]} 15... Qb7 {[%clk 0:02:31.8]} 16. h3 {[%clk 0:02:05.9]} 16... Bxf3
{[%clk 0:02:29.8]} 17. Nxf3 {[%clk 0:02:07.3]} 17... Rfc8 {[%clk 0:02:26.2]} 18.
Rfe1 {[%clk 0:01:49.9]} 18... e6 {[%clk 0:02:15.2]} 19. g4 {[%clk 0:01:47.1]}
19... Kh8 {[%clk 0:01:50.4]} 20. Bd6 {[%clk 0:01:31.8]} 20... Ng8 {[%clk
0:01:48.5]} 21. Nd4 {[%clk 0:01:29.3]} 21... Ne7 {[%clk 0:01:42.3]} 22. Qb5
{[%clk 0:01:16.4]} 22... Qxb5 {[%clk 0:01:35.1]} 23. Nxb5 {[%clk 0:01:18.3]}
23... a6 {[%clk 0:01:06.8]} 24. Nc7 {[%clk 0:01:03.7]} 24... Ra7 {[%clk
0:01:05.9]} 25. Rc2 {[%clk 0:01:00.5]} 25... Bf8 {[%clk 0:01:01.6]} 26. Rec1
{[%clk 0:00:59.8]} 26... Kg8 {[%clk 0:00:57.4]} 27. f4 {[%clk 0:00:55.5]} 27...
Bh6 {[%clk 0:00:51.2]} 28. Nxd5 {[%clk 0:00:43.2]} 28... Rxc2 {[%clk 0:00:46.2]}
29. Nxe7+ {[%clk 0:00:43.5]} 29... Rxe7 {[%clk 0:00:44.7]} 30. Rxc2 {[%clk
0:00:44.6]} 30... Re8 {[%clk 0:00:45.9]} 31. g5 {[%clk 0:00:45.8]} 31... Bg7
{[%clk 0:00:46.9]} 32. Rc6 {[%clk 0:00:46.3]} 32... Ra8 {[%clk 0:00:48.2]} 33.
b4 {[%clk 0:00:47]} 33... h6 {[%clk 0:00:49.6]} 34. h4 {[%clk 0:00:47.6]} 34...
hxg5 {[%clk 0:00:51.1]} 35. hxg5 {[%clk 0:00:49.5]} 35... Bf8 {[%clk 0:00:52.5]}
36. a4 {[%clk 0:00:48.9]} 36... Bxd6 {[%clk 0:00:53.2]} 37. exd6 {[%clk
0:00:49.2]} 37... Kf8 {[%clk 0:00:54.4]} 38. Rb6 {[%clk 0:00:45.6]} 38... Ke8
{[%clk 0:00:54.5]} 39. a5 {[%clk 0:00:46.3]} 39... Kd7 {[%clk 0:00:55]} 40. Kf2
{[%clk 0:00:47.8]} 40... Rc8 {[%clk 0:00:49.7]} 41. Rxa6 {[%clk 0:00:47.3]}
41... Rc4 {[%clk 0:00:50.6]} 42. Rb6 {[%clk 0:00:48]} 42... Rxf4+ {[%clk
0:00:51.6]} 43. Ke3 {[%clk 0:00:49.5]} 43... Rf1 {[%clk 0:00:52]} 44. a6 {[%clk
0:00:50.6]} 44... Ra1 {[%clk 0:00:53.6]} 45. b5 {[%clk 0:00:51.7]} 45... e5
{[%clk 0:00:54.7]} 46. Rb7+ {[%clk 0:00:50.2]} 46... Kc8 {[%clk 0:00:56.1]} 47.
d7+ {[%clk 0:00:50.1]} 47... Kd8 {[%clk 0:00:56.9]} 48. a7 {[%clk 0:00:51.5]}
48... Ke7 {[%clk 0:00:58.2]} 49. d8=Q+ {[%clk 0:00:50.8]} 49... Ke6 {[%clk
0:00:58.9]} 1-0

[Event "*** Titled Tuesday Blitz"]
[Site "Chess.com"]
[Date "2019.02.05"]
[Round "2"]
[White "AlexTriapishko"]
[Black "otrov-11"]
[Result "1-0"]
[WhiteElo "2768"]
[BlackElo "2308"]
[TimeControl "180+2"]
[EndTime "13:22:33 PST"]
[Termination "AlexTriapishko won by resignation"]

1. d4 {[%clk 0:02:56.4]} 1... Nf6 {[%clk 0:02:58.6]} 2. Nc3 {[%clk 0:02:57.5]}
2... d5 {[%clk 0:02:58.5]} 3. Bf4 {[%clk 0:02:59]} 3... e6 {[%clk 0:02:47.6]} 4.
Nb5 {[%clk 0:02:59.5]} 4... Na6 {[%clk 0:02:46.4]} 5. e3 {[%clk 0:03:00.9]} 5...
c6 {[%clk 0:02:42.3]} 6. Nc3 {[%clk 0:03:02.3]} 6... Nc7 {[%clk 0:02:43.7]} 7.
Nf3 {[%clk 0:02:56.1]} 7... Bd6 {[%clk 0:02:43.6]} 8. Bd3 {[%clk 0:02:55.3]}
8... c5 {[%clk 0:02:35.6]} 9. dxc5 {[%clk 0:02:50.8]} 9... Bxc5 {[%clk
0:02:36.3]} 10. O-O {[%clk 0:02:52.4]} 10... O-O {[%clk 0:02:36.7]} 11. e4
{[%clk 0:02:53.9]} 11... dxe4 {[%clk 0:02:29.9]} 12. Nxe4 {[%clk 0:02:54.9]}
12... Nxe4 {[%clk 0:02:30.6]} 13. Bxe4 {[%clk 0:02:56.8]} 13... Nd5 {[%clk
0:02:14.9]} 14. Bg3 {[%clk 0:02:47.6]} 14... Nf6 {[%clk 0:02:00.6]} 15. Bd3
{[%clk 0:02:46.2]} 15... b6 {[%clk 0:01:56.6]} 16. Qe2 {[%clk 0:02:44.6]} 16...
Bb7 {[%clk 0:01:55.6]} 17. Rad1 {[%clk 0:02:46]} 17... Qe7 {[%clk 0:01:56.6]}
18. Bh4 {[%clk 0:02:46.3]} 18... Rfd8 {[%clk 0:01:51.9]} 19. a3 {[%clk
0:02:36.2]} 19... a5 {[%clk 0:01:52.7]} 20. c3 {[%clk 0:02:26.1]} 20... a4
{[%clk 0:01:51]} 21. Bb5 {[%clk 0:02:16.2]} 21... Bd5 {[%clk 0:01:28.7]} 22. Ne5
{[%clk 0:02:03.7]} 22... Qc7 {[%clk 0:01:02.2]} 23. Bxf6 {[%clk 0:01:38.9]}
23... gxf6 {[%clk 0:01:04.1]} 24. Ng4 {[%clk 0:01:40.4]} 24... f5 {[%clk
0:00:50]} 25. Qe5 {[%clk 0:01:26.3]} 25... Qxe5 {[%clk 0:00:41.3]} 26. Nxe5
{[%clk 0:01:28.2]} 26... Bb3 {[%clk 0:00:42.6]} 27. Rd3 {[%clk 0:01:25.4]} 27...
Rxd3 {[%clk 0:00:25.9]} 28. Nxd3 {[%clk 0:01:27.3]} 28... Be7 {[%clk 0:00:27.3]}
29. Nc1 {[%clk 0:01:19.3]} 29... Bd5 {[%clk 0:00:21.1]} 30. Ne2 {[%clk
0:01:16.1]} 30... Rd8 {[%clk 0:00:20.7]} 31. Nd4 {[%clk 0:01:07.6]} 31... Bf6
{[%clk 0:00:17.9]} 32. Bxa4 {[%clk 0:01:06.4]} 32... Bc4 {[%clk 0:00:19.2]} 33.
Rd1 {[%clk 0:01:02.8]} 33... e5 {[%clk 0:00:18.2]} 34. Nxf5 {[%clk 0:01:02.6]}
34... Rxd1+ {[%clk 0:00:18.6]} 35. Bxd1 {[%clk 0:01:04.5]} 35... Bd3 {[%clk
0:00:17.7]} 36. Ne3 {[%clk 0:01:02.8]} 36... Be7 {[%clk 0:00:16.8]} 37. Nd5
{[%clk 0:01:03.4]} 37... Bc5 {[%clk 0:00:17.7]} 38. b4 {[%clk 0:01:03.6]} 38...
Bf8 {[%clk 0:00:18.3]} 39. Nxb6 {[%clk 0:01:04.3]} 39... e4 {[%clk 0:00:19.5]}
40. a4 {[%clk 0:01:03.1]} 40... Bg7 {[%clk 0:00:20.1]} 41. Nd5 {[%clk
0:00:59.4]} 41... Bc4 {[%clk 0:00:20.3]} 42. Ne3 {[%clk 0:01:00.6]} 42... Bd3
{[%clk 0:00:20.7]} 43. c4 {[%clk 0:01:00]} 43... Bc3 {[%clk 0:00:21.4]} 44. b5
{[%clk 0:01:00.8]} 44... Bd4 {[%clk 0:00:22]} 45. a5 {[%clk 0:01:01.9]} 45...
Bxe3 {[%clk 0:00:21.6]} 46. fxe3 {[%clk 0:01:03.8]} 46... Bxc4 {[%clk
0:00:23.5]} 47. b6 {[%clk 0:01:03.7]} 47... Ba6 {[%clk 0:00:24.6]} 48. Bb3
{[%clk 0:01:03]} 48... Kg7 {[%clk 0:00:25.6]} 49. Bd5 {[%clk 0:01:03.7]} 49...
f5 {[%clk 0:00:26.4]} 50. b7 {[%clk 0:01:04.7]} 1-0

[Event "*** Titled Tuesday Blitz"]
[Site "Chess.com"]
[Date "2019.02.05"]
[Round "2"]
[White "akhairat"]
[Black "Gentlejimmy7"]
[Result "0-1"]
[WhiteElo "2245"]
[BlackElo "2293"]
[TimeControl "180+2"]
[EndTime "13:22:35 PST"]
[Termination "Gentlejimmy7 won on time"]

1. Nf3 {[%clk 0:02:41.9]} 1... Nf6 {[%clk 0:02:59.3]} 2. g3 {[%clk 0:02:43.2]}
2... g6 {[%clk 0:02:59.8]} 3. Bg2 {[%clk 0:02:44.6]} 3... Bg7 {[%clk 0:03:00.8]}
4. O-O {[%clk 0:02:45.1]} 4... O-O {[%clk 0:03:01.6]} 5. d3 {[%clk 0:02:46.3]}
5... d5 {[%clk 0:03:01.5]} 6. Nbd2 {[%clk 0:02:47.5]} 6... Nc6 {[%clk
0:03:02.2]} 7. c4 {[%clk 0:02:47.7]} 7... Bg4 {[%clk 0:02:50.9]} 8. h3 {[%clk
0:02:46.3]} 8... Be6 {[%clk 0:02:44.7]} 9. Ng5 {[%clk 0:02:41.4]} 9... Bc8
{[%clk 0:02:36.1]} 10. Rb1 {[%clk 0:02:38.8]} 10... h6 {[%clk 0:02:29.9]} 11.
Ngf3 {[%clk 0:02:39.3]} 11... dxc4 {[%clk 0:02:30.5]} 12. Nxc4 {[%clk
0:02:41.2]} 12... Be6 {[%clk 0:02:28.6]} 13. Nfd2 {[%clk 0:02:11.1]} 13... Qd7
{[%clk 0:02:26.9]} 14. Kh2 {[%clk 0:02:11.7]} 14... Rad8 {[%clk 0:02:27.8]} 15.
b4 {[%clk 0:02:11.7]} 15... Nd4 {[%clk 0:02:25.6]} 16. Bb2 {[%clk 0:01:57.3]}
16... c6 {[%clk 0:02:24.4]} 17. a3 {[%clk 0:01:44.6]} 17... Qc7 {[%clk
0:02:11.6]} 18. Rc1 {[%clk 0:01:38.5]} 18... h5 {[%clk 0:02:07.3]} 19. Nf3
{[%clk 0:01:30.5]} 19... Nxf3+ {[%clk 0:02:03]} 20. Bxf3 {[%clk 0:01:32.4]}
20... h4 {[%clk 0:02:03.9]} 21. Kg2 {[%clk 0:00:52.3]} 21... hxg3 {[%clk
0:02:04.3]} 22. fxg3 {[%clk 0:00:54.2]} 22... Nd5 {[%clk 0:02:01.2]} 23. Bxg7
{[%clk 0:00:54.4]} 23... Kxg7 {[%clk 0:01:58.3]} 24. e4 {[%clk 0:00:53.2]} 24...
Nb6 {[%clk 0:01:53.3]} 25. Qe2 {[%clk 0:00:53.1]} 25... Nxc4 {[%clk 0:01:52.8]}
26. dxc4 {[%clk 0:00:55]} 26... Rd4 {[%clk 0:01:53.9]} 27. Rfd1 {[%clk
0:00:43.6]} 27... Rfd8 {[%clk 0:01:43.1]} 28. Qb2 {[%clk 0:00:33.7]} 28... Qe5
{[%clk 0:01:39.6]} 29. Kf2 {[%clk 0:00:21.3]} 29... f6 {[%clk 0:01:35.9]} 30.
Qc2 {[%clk 0:00:14.7]} 30... Rxc4 {[%clk 0:01:30.1]} 31. Rxd8 {[%clk 0:00:12.1]}
31... Rxc2+ {[%clk 0:01:23.8]} 32. Rxc2 {[%clk 0:00:14]} 32... Bxh3 {[%clk
0:01:15.2]} 33. Rd3 {[%clk 0:00:10.9]} 33... Qa1 {[%clk 0:01:09.6]} 34. Rcd2
{[%clk 0:00:11]} 34... Qf1+ {[%clk 0:01:07.7]} 35. Ke3 {[%clk 0:00:12.1]} 35...
Qg1+ {[%clk 0:01:08.6]} 36. Rf2 {[%clk 0:00:04.3]} 36... Qxg3 {[%clk 0:01:05.8]}
37. Ke2 {[%clk 0:00:04.6]} 37... Qe5 {[%clk 0:01:03.6]} 0-1